bitfinex/quotes_BTCUSD_20220211
["timestamp","ask_amount","ask_price","bid_price","bid_amount"]
[1644591891605,0.114523,43692.0,43690.0,0.15278863]
[1644591891904,0.164523,43692.0,43690.0,0.15278863]
[1644591892152,0.107261,43692.0,43690.0,0.15278863]
[1644591892351,0.107261,43692.0,43690.0,0.20278863]
[1644591892750,0.107261,43692.0,43690.0,0.05]
[1644591892951,0.107261,43692.0,43690.0,0.24890391]
[1644591893351,0.107261,43692.0,43690.0,0.29890391]
[1644591893752,0.107261,43692.0,43691.0,0.2560454]
[1644591893951,0.05,43692.0,43691.0,0.2560454]
[1644591894151,0.107255,43694.0,43691.0,0.2560454]
[1644591894352,0.107255,43694.0,43691.0,0.3133004]
[1644591894552,0.107255,43694.0,43691.0,0.057255]
[1644591895054,0.107255,43694.0,43683.0,0.114527]
[1644591895055,0.11453,43692.0,43683.0,0.114527]
[1644591895255,0.11453,43692.0,43681.0,0.057277]
[1644591895256,0.19509423,43689.0,43681.0,0.057277]
[1644591895455,0.19509423,43684.0,43681.0,0.057277]
[1644591895655,0.057276,43685.0,43683.0,0.31643168]
[1644591895901,0.057276,43685.0,43682.0,0.08895935]
[1644591895902,0.05,43684.0,43682.0,0.08895935]
[1644591896101,0.164554,43684.0,43682.0,0.08895935]
[1644591896297,0.164554,43684.0,43681.0,0.057277]
[1644591896298,0.114554,43684.0,43681.0,0.057277]
[1644591897701,0.114554,43684.0,43682.0,0.07658254]
[1644591898103,0.114554,43684.0,43682.0,0.12658254]
[1644591898503,0.114554,43684.0,43683.0,0.35327015]
[1644591898705,0.057276,43685.0,43683.0,0.35327015]
[1644591899303,0.114547,43685.0,43683.0,0.35327015]
[1644591899505,0.19509423,43689.0,43684.0,0.29359861]
[1644591899757,0.05726,43688.0,43685.0,0.05]
[1644591899956,0.19509423,43691.0,43690.0,0.26250908]
[1644591900156,0.19509423,43692.0,43690.0,0.26250908]
[1644591900356,0.40015794,43695.0,43690.0,0.05]
[1644591900357,0.19509423,43694.0,43690.0,0.05]
[1644591900561,0.19509423,43693.0,43690.0,0.05]
[1644591900757,0.057256,43691.0,43689.0,0.057253]
[1644591901058,0.057256,43691.0,43685.0,0.52681712]
[1644591901059,0.25235023,43691.0,43685.0,0.52681712]
[1644591901456,0.25235023,43691.0,43686.0,0.34791543]
[1644591901655,0.25235023,43691.0,43688.0,0.114506]
[1644591901856,0.057256,43691.0,43688.0,0.114506]
[1644591902155,0.057256,43691.0,43689.0,0.057253]
[1644591903156,0.22927894,43690.0,43689.0,0.057253]
[1644591903410,0.22927894,43690.0,43688.0,0.164506]
[1644591903610,0.164526,43690.0,43688.0,0.114506]
[1644591903805,0.45730959,43690.0,43674.0,3.59947549]
[1644591904106,0.057278,43682.0,43681.0,0.057277]
[1644591904305,0.19518408,43683.0,43675.0,0.114557]
[1644591904306,0.55267253,43683.0,43675.0,0.114557]
[1644591904507,0.55267253,43683.0,43674.0,3.59947549]
[1644591904508,0.49787724,43677.0,43674.0,3.59947549]
[1644591904707,0.49787724,43677.0,43674.0,3.56686783]
[1644591904708,0.23735906,43676.0,43674.0,3.56686783]
[1644591904906,0.28735906,43676.0,43674.0,3.56686783]
[1644591905109,0.29465506,43676.0,43674.0,3.56686783]
[1644591905309,0.34465506,43676.0,43674.0,3.56686783]
[1644591905707,0.05,43675.0,43674.0,3.56686783]
[1644591905908,0.0922,43675.0,43674.0,3.56686783]
[1644591906110,0.23735906,43675.0,43674.0,3.56686783]
[1644591906306,0.28735906,43675.0,43674.0,3.56686783]
[1644591906508,0.0922,43675.0,43674.0,3.56686783]
[1644591907268,0.0922,43675.0,43674.0,3.61686783]
[1644591907269,0.0422,43675.0,43674.0,3.61686783]
[1644591907467,0.057296,43676.0,43674.0,3.61686783]
[1644591907667,0.057296,43676.0,43675.0,0.31444857]
[1644591907867,0.057296,43676.0,43675.0,0.39052228]
[1644591908267,0.057296,43676.0,43674.0,3.61686783]
[1644591908773,0.057296,43676.0,43674.0,3.56686783]
[1644591908774,0.36233287,43675.0,43674.0,3.56686783]
[1644591908969,0.36233287,43675.0,43674.0,3.56186783]
[1644591909168,0.80001472,43675.0,43674.0,3.56186783]
[1644591909368,1.19082721,43675.0,43674.0,3.56154783]
[1644591909568,1.19082721,43675.0,43674.0,3.21772783]
[1644591909970,0.85001472,43675.0,43674.0,2.87390983]
[1644591910169,1.14277038,43675.0,43674.0,2.87390983]
[1644591910573,0.85001472,43675.0,43674.0,2.87390983]
[1644591910769,1.14276791,43675.0,43674.0,2.87390983]
[1644591911009,1.16458915,43675.0,43674.0,2.87390983]
[1644591911420,1.16458915,43675.0,43674.0,2.79190984]
[1644591912009,0.82263504,43675.0,43674.0,2.79190984]
[1644591912209,0.77263504,43675.0,43674.0,2.79190984]
[1644591913311,0.1922,43675.0,43674.0,2.79190984]
[1644591913512,0.34518962,43675.0,43674.0,2.79190984]
[1644591913711,0.35248562,43676.0,43674.0,2.79190984]
[1644591913914,0.19518962,43675.0,43674.0,2.79190984]
[1644591914210,0.057296,43676.0,43674.0,2.84190984]
[1644591914409,0.19518375,43675.0,43674.0,2.84190984]
[1644591915359,0.057296,43676.0,43674.0,2.84190984]
[1644591915360,0.30126684,43676.0,43674.0,2.84190984]
[1644591915761,0.35126684,43676.0,43674.0,2.84190984]
[1644591915960,0.45126684,43676.0,43674.0,2.84190984]
[1644591916160,0.45126684,43676.0,43674.0,3.19214497]
[1644591916359,0.35248513,43676.0,43674.0,2.84190984]
[1644591916960,0.19518913,43675.0,43674.0,2.84190984]
[1644591917161,0.40126684,43676.0,43674.0,2.79190984]
[1644591917361,0.35248164,43676.0,43674.0,2.79190984]
[1644591917565,0.157296,43676.0,43675.0,0.3196667]
[1644591917761,0.207296,43676.0,43675.0,0.3196667]
[1644591917962,0.207296,43676.0,43674.0,2.79190984]
[1644591917963,0.40251878,43676.0,43674.0,2.79190984]
[1644591918161,0.45126684,43676.0,43674.0,2.79190984]
[1644591918406,0.45126684,43676.0,43674.0,2.84190984]
[1644591918805,0.36545688,43675.0,43674.0,2.79190984]
[1644591919002,0.92039029,43675.0,43674.0,2.79190984]
[1644591919305,1.45653564,43675.0,43674.0,2.79190984]
[1644591919803,1.75389281,43675.0,43674.0,2.00915134]
[1644591920202,1.75389281,43675.0,43674.0,1.66532634]
[1644591920603,1.1,43674.0,43671.0,0.01100206]
[1644591920805,0.2,43672.0,43671.0,0.01100206]
[1644591921003,0.2,43672.0,43671.0,0.00744919]
[1644591921004,0.73520652,43672.0,43671.0,0.00744919]
[1644591921204,1.4,43670.0,43667.0,0.0011]
[1644591921404,0.33637931,43669.0,43667.0,0.0011]
[1644591921604,0.98055607,43669.0,43667.0,0.0011]
[1644591921809,1.13786807,43669.0,43665.0,0.00020323]
[1644591922005,1.19518207,43669.0,43664.0,0.00399327]
[1644591922305,1.19518207,43669.0,43646.0,0.5847]
[1644591922306,0.05,43665.0,43648.0,0.05731197]
[1644591922507,0.05,43665.0,43663.0,0.00020566]
[1644591922508,0.28638354,43664.0,43663.0,0.00020566]
[1644591922704,0.0422,43664.0,43660.0,0.17320666]
[1644591922905,0.0922,43664.0,43660.0,0.17320666]
[1644591923106,0.057314,43663.0,43661.0,0.069516]
[1644591923309,0.0422,43662.0,43661.0,0.069516]
[1644591923707,0.0422,43662.0,43661.0,0.06701641]
[1644591923905,0.0422,43662.0,43661.0,0.11701641]
[1644591925109,0.0422,43662.0,43661.0,0.0111]
[1644591926512,0.057314,43663.0,43661.0,0.068416]
[1644591927214,0.057314,43663.0,43661.0,0.118416]
[1644591928313,0.22938137,43670.0,43662.0,1.1]
[1644591928514,0.22938137,43670.0,43663.0,0.30382855]
[1644591928713,0.57054977,43683.0,43663.0,0.30382855]
[1644591928714,0.00070791,43666.0,43663.0,0.35403421]
[1644591928912,0.19530565,43677.0,43673.0,0.33335794]
[1644591929112,0.22030952,43681.0,43673.0,0.33335794]
[1644591929113,0.057283,43676.0,43673.0,0.33335794]
[1644591929312,0.057283,43676.0,43673.0,0.38335794]
[1644591929661,0.057283,43676.0,43674.0,0.07797255]
[1644591930055,0.30258865,43676.0,43674.0,0.07797255]
[1644591930255,0.114576,43675.0,43674.0,0.07797255]
[1644591930556,0.164576,43675.0,43674.0,0.07797255]
[1644591930955,0.164576,43675.0,43671.0,0.08425642]
[1644591931157,0.057287,43674.0,43672.0,0.05]
[1644591931356,0.057287,43674.0,43671.0,0.08425642]
[1644591931557,0.057287,43674.0,43672.0,0.114566]
[1644591932258,0.057287,43674.0,43672.0,0.164566]
[1644591932858,0.00046175,43675.0,43672.0,0.44483835]
[1644591933061,0.00046175,43675.0,43672.0,0.43925215]
[1644591933257,0.19530565,43683.0,43675.0,0.05726971]
[1644591933509,0.19530565,43683.0,43678.0,0.37740335]
[1644591933707,0.19521935,43683.0,43682.0,0.0756661]
[1644591934107,0.19521935,43683.0,43682.0,0.43182242]
[1644591934520,0.24418354,43685.0,43683.0,1.1]
[1644591934713,0.00070796,43685.0,43682.0,0.53908042]
[1644591934914,0.19521843,43690.0,43682.0,0.53908042]
[1644591935110,0.19521843,43690.0,43682.0,0.30975039]
[1644591935416,0.19521843,43692.0,43688.0,0.05]
[1644591935616,0.19521843,43694.0,43691.0,0.05]
[1644591935812,0.04883163,43701.0,43693.0,1.1]
[1644591936014,0.057244,43710.0,43692.0,1.42295]
[1644591936015,0.34150216,43711.0,43701.0,1.0]
[1644591936215,0.001,43712.0,43705.0,0.05]
[1644591936418,0.001,43712.0,43707.0,0.32295]
[1644591936419,0.00125298,43712.0,43707.0,0.32295]
[1644591936613,0.16804798,43715.0,43710.0,0.32673143]
[1644591936813,0.011,43719.0,43710.0,0.43395243]
[1644591937013,0.36807922,43718.0,43710.0,0.2046224]
[1644591937269,0.07637121,43716.0,43710.0,0.10164845]
[1644591937469,0.00046069,43711.0,43709.0,0.114442]
[1644591938067,0.30238741,43718.0,43710.0,0.057221]
[1644591938268,0.30238741,43718.0,43711.0,0.25564435]
[1644591938468,0.30238741,43718.0,43710.0,0.057221]
[1644591938469,0.00071116,43712.0,43710.0,0.057221]
[1644591939370,0.06989138,43717.0,43710.0,0.31624083]
[1644591939569,0.011,43719.0,43710.0,0.31624083]
[1644591939770,0.00071116,43713.0,43710.0,0.31624083]
[1644591940073,0.00071116,43713.0,43711.0,0.33580061]
[1644591940269,0.00071116,43713.0,43712.0,0.26244113]
[1644591940471,0.011,43719.0,43712.0,0.43412813]
[1644591940916,0.002,43721.0,43715.0,0.057218]
[1644591941110,0.002,43721.0,43718.0,0.37328223]
[1644591941312,0.002,43721.0,43715.0,0.057218]
[1644591941515,0.05723,43720.0,43715.0,0.057218]
[1644591941712,0.07570834,43719.0,43715.0,0.057218]
[1644591942311,0.0007124,43720.0,43718.0,0.30250284]
[1644591942720,0.0007124,43720.0,43718.0,0.35250284]
[1644591942913,0.002,43721.0,43716.0,0.31700161]
[1644591943314,0.00271239,43721.0,43716.0,0.31700161]
[1644591943512,0.00271239,43721.0,43718.0,0.171659]
[1644591943712,0.00271239,43721.0,43719.0,0.05]
[1644591944212,0.00271239,43721.0,43718.0,0.171659]
[1644591944213,0.002,43721.0,43720.0,0.05]
[1644591944414,0.002,43721.0,43718.0,0.02307236]
[1644591944861,0.08847509,43720.0,43718.0,0.02307236]
[1644591945063,0.08847509,43720.0,43712.0,0.14407876]
[1644591945365,0.31507148,43715.0,43709.0,0.57461154]
[1644591945561,0.057233,43718.0,43713.0,0.057234]
[1644591945768,0.00271239,43721.0,43714.0,0.3]
[1644591946062,0.00271239,43721.0,43713.0,0.057234]
[1644591946263,0.05993939,43721.0,43713.0,0.057234]
[1644591946661,0.12764306,43721.0,43718.0,0.26473998]
[1644591946861,0.00066604,43719.0,43718.0,0.37196598]
[1644591947262,0.00066604,43719.0,43716.0,0.50252927]
[1644591947662,0.002,43721.0,43716.0,0.50252927]
[1644591947865,0.002,43721.0,43717.0,0.27388283]
[1644591948063,0.00041255,43720.0,43718.0,0.057226]
[1644591948263,0.00041255,43720.0,43719.0,0.25996269]
[1644591948512,0.00041255,43720.0,43719.0,0.58101308]
[1644591948710,0.002,43721.0,43719.0,0.58101308]
[1644591948913,0.002,43721.0,43720.0,0.29280585]
[1644591949108,0.001,43722.0,43721.0,0.5]
[1644591949311,0.001,43722.0,43721.0,0.80433665]
[1644591949509,0.001,43730.0,43721.0,0.95433665]
[1644591949708,0.001,43730.0,43722.0,0.107209]
[1644591949909,0.001,43730.0,43724.0,0.05]
[1644591950112,0.17464,43736.0,43727.0,0.27576323]
[1644591950113,0.00214312,43736.0,43727.0,0.27576323]
[1644591950310,0.23908784,43739.0,43738.0,0.25051236]
[1644591950514,0.002,43746.0,43733.0,0.3]
[1644591950711,0.002,43746.0,43740.0,0.33079772]
[1644591950913,0.30427832,43749.0,43732.0,0.08147682]
[1644591950914,0.0516627,43749.0,43732.0,0.08147682]
[1644591951111,0.29394102,43749.0,43733.0,0.3]
[1644591951310,0.0016627,43749.0,43733.0,0.35]
[1644591951515,0.0016627,43749.0,43744.0,0.33189223]
[1644591951717,0.00067264,43750.0,43745.0,0.06021764]
[1644591952011,0.00183337,43749.0,43745.0,0.06021764]
[1644591952257,0.00141932,43752.0,43745.0,0.36021764]
[1644591952258,0.00034782,43752.0,43745.0,0.36021764]
[1644591952559,0.001,43777.0,43747.0,1.1]
[1644591952757,0.07030311,43776.0,43771.0,0.05]
[1644591952957,0.001,43777.0,43752.0,0.59685157]
[1644591952958,0.00089856,43777.0,43775.0,0.05]
[1644591953260,0.001,43786.0,43772.0,0.1422]
[1644591953261,0.00067396,43781.0,43772.0,0.1422]
[1644591953455,0.00067396,43781.0,43772.0,0.0922]
[1644591953655,0.00067396,43781.0,43776.0,0.05713341]
[1644591953857,0.30845198,43780.0,43776.0,0.05713341]
[1644591954056,0.4961903,43780.0,43776.0,0.05713341]
[1644591954254,0.30845198,43780.0,43776.0,0.05713341]
[1644591954655,0.05482596,43785.0,43776.0,0.05713341]
[1644591954855,0.00134792,43785.0,43779.0,0.11428597]
[1644591955256,0.18907167,43784.0,43779.0,0.16428597]
[1644591955656,0.001,43788.0,43779.0,0.16428597]
[1644591955657,0.30071605,43788.0,43779.0,0.50731368]
[1644591955917,0.30071605,43788.0,43779.0,0.16428597]
[1644591956105,0.30071605,43788.0,43778.0,0.10678473]
[1644591956306,0.001,43788.0,43779.0,0.35]
[1644591956510,0.052,43794.0,43786.0,0.08361193]
[1644591956708,0.052,43794.0,43788.0,0.05713011]
[1644591956709,0.002,43794.0,43788.0,0.05713011]
[1644591956907,0.0028552,43792.0,43788.0,0.05713011]
[1644591957107,0.001,43794.0,43788.0,0.05713011]
[1644591957512,0.000401,43800.0,43788.0,1.15713011]
[1644591957708,0.000401,43800.0,43789.0,0.05]
[1644591957906,0.000401,43800.0,43792.0,0.05712082]
[1644591958106,0.000401,43800.0,43795.0,0.11423717]
[1644591958409,0.000401,43800.0,43796.0,0.0422]
[1644591958606,0.000401,43800.0,43795.0,0.16423717]
[1644591959309,0.000401,43800.0,43795.0,0.46423717]
[1644591959660,0.000401,43800.0,43796.0,0.3571183]
[1644591959861,0.22877803,43798.0,43796.0,0.3571183]
[1644591960060,0.1119069,43798.0,43797.0,0.74989372]
[1644591960263,0.000401,43800.0,43797.0,0.35]
[1644591960761,0.05,43804.0,43797.0,0.31240124]
[1644591960762,0.25050205,43804.0,43797.0,0.31240124]
[1644591961159,0.25050205,43804.0,43796.0,0.3571183]
[1644591961360,0.00047287,43808.0,43796.0,0.3571183]
[1644591961760,0.00045509,43803.0,43796.0,0.3571183]
[1644591961964,0.00094574,43809.0,43797.0,1.1]
[1644591962263,0.00094574,43809.0,43801.0,0.10710852]
[1644591962563,0.205292,43823.0,43803.0,1.27127831]
[1644591962760,0.0013738,43826.0,43803.0,1.42127831]
[1644591962960,0.0013738,43826.0,43804.0,0.05]
[1644591963162,0.0013738,43826.0,43808.0,0.05708659]
[1644591963413,0.0013738,43826.0,43809.0,0.3]
[1644591963613,0.00073548,43823.0,43817.0,0.11416142]
[1644591964013,0.0668245,43823.0,43817.0,0.11416142]
[1644591964211,0.0668245,43823.0,43818.0,0.05708071]
[1644591964410,0.0668245,43823.0,43817.0,0.11416142]
[1644591964611,0.0668245,43823.0,43813.0,0.11420295]
[1644591964612,0.07384007,43816.0,43813.0,0.11420295]
[1644591964810,0.00073548,43823.0,43814.0,0.3]
[1644591965713,0.05782548,43823.0,43813.0,0.11420295]
[1644591965913,0.05782548,43823.0,43814.0,0.47126594]
[1644591966116,0.05782548,43823.0,43814.0,0.52126594]
[1644591966517,0.00071578,43820.0,43814.0,0.22126594]
[1644591966714,0.00071578,43820.0,43814.0,0.17126594]
[1644591966915,0.00071578,43820.0,43814.0,0.15413935]
[1644591967358,0.00071578,43820.0,43813.0,0.3]
[1644591967557,0.40280865,43818.0,43814.0,0.5]
[1644591967758,0.057095,43819.0,43815.0,0.3]
[1644591967759,0.05754944,43819.0,43815.0,0.3]
[1644591967958,0.114207,43815.0,43809.0,0.3]
[1644591968558,0.114207,43815.0,43811.0,0.5]
[1644591968860,0.35984995,43813.0,43812.0,0.3]
[1644591969059,0.35984995,43813.0,43810.0,0.0570985]
[1644591969257,0.23357143,43812.0,43808.0,0.11419842]
[1644591969458,0.23357143,43812.0,43804.0,0.11421028]
[1644591969659,0.11961704,43812.0,43792.0,0.8841]
[1644591969860,0.30338213,43803.0,43795.0,0.5]
[1644591970058,0.21621888,43810.0,43806.0,0.00071767]
[1644591970258,0.114226,43808.0,43801.0,0.30344981]
[1644591970460,0.114226,43808.0,43792.0,0.5841]
[1644591970461,0.0658336,43805.0,43792.0,0.5]
[1644591970661,0.0658336,43805.0,43777.0,0.3802]
[1644591970662,0.5279,43799.0,43761.0,0.01]
[1644591970938,0.5279,43799.0,43768.0,0.13368714]
[1644591970939,0.5279,43781.0,43768.0,0.13368714]
[1644591971231,0.5279,43781.0,43761.0,0.01]
[1644591971232,0.5279,43778.0,43761.0,0.01]
[1644591971433,0.30726034,43767.0,43761.0,0.01]
[1644591971629,0.099372,43766.0,43761.0,0.01]
[1644591971832,0.156543,43766.0,43761.0,0.01]
[1644591972029,0.213716,43766.0,43761.0,0.01]
[1644591972231,0.156543,43766.0,43761.0,0.01]
[1644591972429,0.36027297,43766.0,43761.0,0.01]
[1644591972629,0.156543,43766.0,43762.0,0.26460062]
[1644591972829,0.00903677,43766.0,43762.0,0.26460062]
[1644591973031,0.00025682,43767.0,43763.0,0.3]
[1644591973229,0.0422,43765.0,43761.0,0.01]
[1644591973430,0.099367,43766.0,43761.0,0.01]
[1644591973635,0.23689676,43765.0,43761.0,0.01]
[1644591973831,0.37855661,43764.0,43761.0,0.01026481]
[1644591974233,0.228683,43768.0,43762.0,0.35318689]
[1644591974234,0.114342,43768.0,43762.0,0.35318689]
[1644591974435,0.813681,43784.0,43763.0,0.3]
[1644591974663,0.771481,43784.0,43763.0,0.3]
[1644591974864,0.114302,43776.0,43763.0,0.3]
[1644591975066,0.24689991,43775.0,43769.0,0.00071838]
[1644591975266,0.55231234,43775.0,43770.0,0.46208172]
[1644591975464,0.30541243,43775.0,43770.0,0.17144324]
[1644591975665,0.46256743,43775.0,43770.0,0.05]
[1644591975864,0.057155,43775.0,43770.0,0.05]
[1644591976066,0.114303,43774.0,43761.0,0.01]
[1644591976466,0.114302,43776.0,43770.0,0.00071837]
[1644591976867,0.30907957,43775.0,43770.0,0.00071837]
[1644591977266,0.30907957,43775.0,43762.0,0.11431743]
[1644591977465,0.30907957,43775.0,43770.0,0.00071837]
[1644591977665,0.21615706,43773.0,43770.0,0.00071837]
[1644591977866,0.27331706,43773.0,43770.0,0.00071837]
[1644591978065,0.32331706,43773.0,43770.0,0.00071837]
[1644591978267,0.32331706,43773.0,43761.0,0.01]
[1644591978268,0.07539087,43764.0,43761.0,0.01]
[1644591978524,0.08,43756.0,43747.0,0.3]
[1644591978719,0.057182,43755.0,43743.0,0.27988997]
[1644591978920,0.08,43754.0,43751.0,0.11435537]
[1644591979322,0.32867519,43757.0,43756.0,0.15999999]
[1644591981320,0.32867519,43757.0,43756.0,0.20999999]
[1644591981725,0.85198756,43757.0,43756.0,0.10999999]
[1644591982168,0.85198756,43757.0,43738.0,0.5479]
[1644591982169,0.057196,43747.0,43738.0,0.5479]
[1644591982568,0.30782671,43744.0,43731.0,0.29552215]
[1644591982770,0.30782671,43744.0,43734.0,0.09256]
[1644591982971,0.5,43754.0,43741.0,0.05719558]
[1644591982972,0.48334812,43754.0,43741.0,0.05719558]
[1644591983173,3.48224969,43777.0,43745.0,0.15]
[1644591983174,0.40041572,43770.0,43745.0,0.15]
[1644591983474,0.05,43765.0,43746.0,0.3]
[1644591983669,0.05,43765.0,43746.0,0.35]
[1644591983875,0.2990047,43760.0,43754.0,0.27043223]
[1644591984073,0.2990047,43760.0,43755.0,0.05717112]
[1644591984271,0.2940047,43760.0,43755.0,0.05717112]
[1644591984475,0.107171,43765.0,43755.0,0.05717112]
[1644591984673,0.171507,43773.0,43755.0,0.3]
[1644591984674,0.22885872,43770.0,43755.0,0.3]
[1644591984870,0.114333,43766.0,43755.0,0.29874486]
[1644591985072,0.114333,43766.0,43755.0,0.30067186]
[1644591985271,0.109233,43766.0,43760.0,0.1143259]
[1644591985470,0.40074579,43764.0,43760.0,0.1143259]
[1644591985684,0.109233,43766.0,43760.0,0.1643259]
[1644591985909,0.057166,43764.0,43760.0,0.42667752]
[1644591986208,0.057166,43764.0,43762.0,0.30556647]
[1644591986809,0.057166,43764.0,43762.0,0.05]
[1644591987111,0.057166,43764.0,43760.0,0.1643259]
[1644591987308,0.057166,43764.0,43761.0,0.00063343]
[1644591988409,0.057166,43764.0,43761.0,0.05716285]
[1644591989012,0.057166,43764.0,43760.0,0.00063654]
[1644591989664,0.38544857,43758.0,43751.0,0.09142]
[1644591989859,0.057178,43757.0,43752.0,0.26334631]
[1644591990159,0.26961869,43757.0,43752.0,0.09142]
[1644591990559,0.26961869,43757.0,43752.0,0.14859402]
[1644591990757,0.26961869,43757.0,43752.0,0.19859402]
[1644591990959,0.26961869,43757.0,43752.0,0.19923309]
[1644591991259,0.26961869,43757.0,43752.0,0.14923309]
[1644591991260,0.36462199,43756.0,43752.0,0.14923309]
[1644591991458,0.36462199,43756.0,43752.0,0.09205907]
[1644591991659,0.07791613,43755.0,43752.0,0.09205907]
[1644591991959,0.12791613,43755.0,43752.0,0.09142]
[1644591992161,0.18771684,43754.0,43752.0,0.09207452]
[1644591992758,0.30209784,43754.0,43752.0,0.09207452]
[1644591993161,0.40209784,43754.0,43742.0,0.5712]
[1644591993414,0.057198,43745.0,43743.0,0.3]
[1644591993612,0.171575,43760.0,43743.0,0.3]
[1644591993613,0.50025755,43761.0,43744.0,0.05]
[1644591993811,0.5,43761.0,43745.0,0.0422]
[1644591994011,0.5,43761.0,43746.0,0.3]
[1644591994212,0.057173,43762.0,43746.0,0.46433424]
[1644591994412,0.05717,43754.0,43746.0,0.7938204]
[1644591994612,0.05717,43754.0,43747.0,0.05716712]
[1644591995012,0.05717,43754.0,43736.0,0.057175]
[1644591995013,0.08226975,43751.0,43736.0,0.1]
[1644591995212,0.08226975,43751.0,43732.0,0.5623]
[1644591995213,0.1422,43751.0,43732.0,0.5623]
[1644591995412,0.4422,43751.0,43732.0,0.5623]
[1644591995610,0.26126172,43743.0,43732.0,0.5623]
[1644591995810,0.34220954,43735.0,43731.0,0.01]
[1644591996114,0.05,43736.0,43731.0,0.01]
[1644591996513,0.0422,43746.0,43732.0,0.11438464]
[1644591996714,0.057192,43740.0,43735.0,0.05719262]
[1644591996911,0.057192,43740.0,43735.0,0.39731713]
[1644591997166,0.057192,43740.0,43738.0,0.00026293]
[1644591997560,0.41361906,43739.0,43738.0,0.00026293]
[1644591997759,1.02462698,43739.0,43731.0,0.0067]
[1644591997960,1.02462698,43739.0,43730.0,0.0001]
[1644591997961,0.057224,43738.0,43730.0,0.0001]
[1644591998161,0.057224,43738.0,43714.0,0.13375728]
[1644591998162,0.25022997,43731.0,43714.0,0.13375728]
[1644591998361,0.40350623,43711.0,43706.0,0.65862]
[1644591998561,0.0422,43719.0,43712.0,0.17888115]
[1644591998759,0.171715,43717.0,43712.0,0.17888115]
[1644591998959,0.0422,43723.0,43712.0,0.17888115]
[1644591998960,0.057239,43715.0,43712.0,0.32888115]
[1644591999158,0.0422,43723.0,43712.0,0.17888115]
[1644591999375,0.057218,43722.0,43712.0,0.17888115]
[1644591999561,0.057216,43727.0,43712.0,0.17888115]
[1644591999562,0.0422,43724.0,43712.0,0.17888115]
[1644591999760,0.0422,43724.0,43721.0,0.29318131]
[1644591999961,0.156642,43724.0,43712.0,0.17888115]
[1644592000160,0.057214,43719.0,43715.0,0.3463169]
[1644592000364,0.057214,43719.0,43715.0,0.40353507]
[1644592000661,0.114437,43719.0,43715.0,0.3463169]
[1644592000906,0.0422,43731.0,43717.0,0.15]
[1644592001207,0.33992939,43732.0,43721.0,0.15]
[1644592001208,0.114421,43726.0,43721.0,0.15]
[1644592001407,0.114421,43726.0,43716.0,0.29368948]
[1644592001408,0.05,43732.0,43724.0,0.05720363]
[1644592001605,0.05,43733.0,43724.0,0.05720363]
[1644592001606,0.05,43733.0,43724.0,0.35423056]
[1644592001806,0.06878158,43732.0,43724.0,0.35423056]
[1644592002007,0.06878158,43732.0,43722.0,0.11440726]
[1644592002008,0.12598758,43732.0,43722.0,0.11440726]
[1644592002206,0.12598758,43732.0,43726.0,0.00071634]
[1644592002207,0.17598758,43732.0,43726.0,0.00071634]
[1644592003010,0.0572,43731.0,43726.0,0.00071634]
[1644592003506,0.0572,43731.0,43724.0,0.28005171]
[1644592003707,0.0572,43731.0,43730.0,0.32715257]
[1644592004509,0.0572,43731.0,43730.0,0.60090552]
[1644592004763,0.478805,43737.0,43730.0,0.64934819]
[1644592004959,0.478805,43737.0,43730.0,0.74934819]
[1644592005164,0.22130206,43748.0,43730.0,0.74934819]
[1644592005165,0.057193,43736.0,43731.0,0.31974055]
[1644592005359,0.057193,43736.0,43730.0,0.32715257]
[1644592005559,0.171603,43736.0,43728.0,0.00067009]
[1644592005758,0.171603,43736.0,43721.0,0.42519175]
[1644592005959,0.11441,43736.0,43731.0,0.00067008]
[1644592006160,0.05,43735.0,43731.0,0.00067008]
[1644592006562,0.34968559,43733.0,43731.0,0.00067008]
[1644592006765,0.08044696,43727.0,43721.0,0.0026809]
[1644592006966,0.057223,43727.0,43713.0,0.27708568]
[1644592007161,0.107223,43727.0,43712.0,0.17888115]
[1644592007362,0.057223,43727.0,43717.0,0.28463]
[1644592007562,0.23967611,43724.0,43721.0,0.00253452]
[1644592007767,0.34689611,43724.0,43721.0,0.00253452]
[1644592007962,0.40411611,43724.0,43721.0,0.00253452]
[1644592008162,0.40411611,43724.0,43717.0,0.28463]
[1644592008412,0.05722,43724.0,43718.0,0.3]
[1644592009014,0.05722,43724.0,43712.0,0.17888115]
[1644592009015,0.05722,43724.0,43719.0,0.11441146]
[1644592009214,0.05722,43724.0,43713.0,0.35]
[1644592009514,0.22395637,43719.0,43713.0,0.3]
[1644592009714,0.30928032,43719.0,43713.0,0.05722097]
[1644592009912,0.30928032,43719.0,43718.0,0.27010422]
[1644592009913,0.05,43719.0,43718.0,0.27010422]
[1644592010314,0.05,43722.0,43718.0,0.27010422]
[1644592010715,0.16444,43725.0,43718.0,0.27010422]
[1644592010913,0.05,43725.0,43718.0,0.27036608]
[1644592011113,2.10149144,43723.0,43718.0,0.00026186]
[1644592011512,0.107215,43722.0,43718.0,0.00026186]
[1644592011716,0.057215,43722.0,43718.0,0.00026186]
[1644592011913,0.057215,43722.0,43717.0,0.057215]
[1644592012165,0.057215,43722.0,43718.0,0.00071639]
[1644592013160,0.11443,43726.0,43718.0,0.3]
[1644592013363,0.5,43728.0,43718.0,0.89685157]
[1644592013562,0.5,43728.0,43720.0,0.10720405]
[1644592013761,0.5,43728.0,43721.0,0.3]
[1644592014161,0.05,43730.0,43728.0,0.33704824]
[1644592014361,0.22906086,43731.0,43721.0,0.3]
[1644592014562,0.22906086,43731.0,43724.0,0.05719852]
[1644592014762,0.057201,43735.0,43724.0,0.05719852]
[1644592014962,0.057091,43735.0,43723.0,0.16439703]
[1644592015361,0.34407492,43729.0,43723.0,0.16439703]
[1644592015566,0.34407492,43729.0,43723.0,0.11439703]
[1644592015765,0.39407492,43729.0,43727.0,0.00071471]
[1644592016009,0.07634573,43728.0,43727.0,0.00071471]
[1644592016508,0.49407492,43729.0,43727.0,0.00071471]
[1644592016509,0.39407492,43729.0,43727.0,0.00071471]
[1644592016713,0.39407492,43729.0,43717.0,0.26331134]
[1644592016714,0.114426,43728.0,43717.0,0.26331134]
[1644592016910,0.21343198,43723.0,43721.0,0.05721668]